Cogmind - Beta 13 @@@ ROGUE MODE // 2024.08.01 @ 16:59:47 Player: ThatBishHoly Result: Destroyed by G-34 Mercenary with Small Laser Performance ------------- Evolutions (1) 500 Regions Visited (3) 600 Robots Destroyed (38) 190 Value Destroyed (614) 614 Prototype IDs (3) 60 Alien Tech Used (0) 0 Bonus (0) 0 TOTAL SCORE: 1964 Bonus ------- None Cogmind --------- Core Integrity 0/400 Matter 300/300 Energy 235/250 System Corruption 0% Temperature Cool (6) Movement Rolling (85) Location -9/Materials Parts ------- > --- POWER (1) -------- Ion Engine > --- PROPULSION (4) --- Wheel Armored Wheel > --- UTILITY (2) ------ Cooling System > --- WEAPON (2) ------- (None) > --- INVENTORY (5) ---- Ion Engine Combat Airjet Small Storage Unit Long-range Tractor Beam Peak State ------------ > --- POWER ------------ Light Ion Engine > --- PROPULSION ------- Combat Airjet > --- UTILITY ---------- Compact Battery Advanced Weight Redist. System > --- WEAPON ----------- Heavy Particle Gun High-powered Shotgun > --- INVENTORY -------- Small Storage Unit Long-range Tractor Beam Welding Torch [Rating: 19] Favorites ----------- Power Ion Engine Engine Ion Engine Propulsion Light Treads Treads Light Treads Wheel Armored Wheel Hover Unit Combat Airjet Utility Small Storage Unit Device Terrain Scanner Storage Small Storage Unit Protection Improved Light Armor Plating Weapon Assault Rifle Energy Gun Heavy Particle Gun Ballistic Gun Assault Rifle Launcher Grenade Launcher Special Weapon Mining Laser Build | -11 -10 -10 -9 ------- Run | Yrd Mat Min Mat Slots Evolved 2 | . . . 2 Power . | . . . . Propulsion 2 | . . . 2 Utility . | . . . . Weapon . | . . . . Parts Attached 45 | 1 15 11 18 Power 6 | . 2 1 3 Engine 6 | . 2 1 3 Core . | . . . . Reactor . | . . . . Propulsion 8 | . 2 2 4 Treads 2 | . 2 . . Leg . | . . . . Wheel 4 | . . 1 3 Hover 2 | . . 1 1 Flight . | . . . . Utility 14 | 1 5 3 5 Device 7 | . 3 2 2 Storage 6 | 1 2 . 3 Processor . | . . . . Hackware . | . . . . Protection 1 | . . 1 . Artifact . | . . . . Weapon 17 | . 6 5 6 Energy Gun 3 | . . . 3 Energy Cannon . | . . . . Ballistic Gun 9 | . 4 3 2 Ballistic Cannon . | . . . . Launcher 2 | . . 2 . Special Weapon 3 | . 2 . 1 Impact Weapon . | . . . . Slashing Weapon . | . . . . Piercing Weapon . | . . . . Special Melee Weapon . | . . . . Unidentified Prototypes 3 | . . . 3 Parts Lost 19 | . 2 6 11 Power 4 | . 1 . 3 Propulsion 2 | . . 1 1 Utility 3 | . . 1 2 Weapon 10 | . 1 4 5 Highest Loss Streak 4 | . 2 4 4 To Critical Strikes . | . . . . Average Slot Usage (%) 73 | . 88 63 51 Engine 8 | . 11 3 8 Treads 16 | . 26 11 . Wheel 1 | . . . 5 Hover 3 | . . 7 8 Device 9 | . 14 5 5 Storage 10 | . 10 11 10 Protection 1 | . . 7 2 Energy Gun 2 | . . . 9 Ballistic Gun 15 | . 23 12 2 Special Weapon 1 | . 1 . . Naked Turns . | . . . . Heaviest Build 15 | 5 15 13 11 Greatest Support 40 | 3 40 40 34 Greatest Overweight (x) 1 | 1 1 1 . Average Overweight (x) . | . . . . Largest Inventory Capacity 25 | 8 25 8 8 Average Capacity 6 | 7 7 7 5 Most Carried 7 | 5 7 7 5 Average Carried 4 | 4 3 5 4 Final Capacity 8 | 8 8 5 5 Final Carried 5 | 5 5 4 4 Class Distribution -------------------- 100% | Mutant Dominant Class ---------------- Mutant | -10/Materials Mutant | -10/Mines Mutant | -9/Materials Resources | -11 -10 -10 -9 ----------- Run | Yrd Mat Min Mat Matter Collected 951 | 210 304 207 230 Remotely 24 | . . 24 . Salvage Created 1260 | . 370 304 586 Parts 86 | . 37 16 33 Haulers Intercepted 2 | . . . 2 Recyclers Shooed 4 | . . 2 2 Parts Field Recycled . | . . . . Retrieved Matter . | . . . . Parts Self-Destructed . | . . . . Prevented . | . . . . Kills | -11 -10 -10 -9 ------- Run | Yrd Mat Min Mat Combat Hostiles Destroyed 27 | . 10 7 10 Melee 1 | . 1 . . Guns 18 | . 8 . 10 Cannons 1 | . 1 . . AOE 7 | . . 7 . Classes Destroyed 9 | . 4 2 3 Worker 2 | . . . 2 Builder 4 | . 2 1 1 Hauler 2 | . . . 2 Recycler 6 | . . 4 2 Watcher 1 | . 1 . . Swarmer 12 | . 3 3 6 Grunt 9 | . 7 . 2 Sentry 2 | . . . 2 Assembled 4 | . . 4 . Best Kill Streak 6 | . 3 4 6 Combat Bots Only 4 | . 3 4 4 Max Kills in Single Turn 4 | . 1 4 1 Gunslinging . | . . . . Exploded 4 | . . 4 . Melee 1 | . 1 . . Uniques/NPCs Destroyed . | . . . . Combat | -11 -10 -10 -9 -------- Run | Yrd Mat Min Mat Hostile Shots Fired 235 | . 57 20 158 Missed 68 | . 16 6 46 Damage Taken 2349 | . 421 514 1414 Core 579 | . 67 102 410 Absorbed by Shields . | . . . . Regen/Repaired (Parts) 124 | . . . 124 Core Remaining (%) 66 | 100 . 32 . Volleys Fired 122 | . 41 18 63 Largest 2 | . 2 2 2 Hottest 120 | . 120 50 80 Shots Fired 158 | . 68 21 69 Gun 152 | . 64 19 69 Cannon . | . . . . Launcher 2 | . . 2 . Special 4 | . 4 . . Kinetic 96 | . 64 19 13 Thermal 46 | . 4 . 42 Explosive 2 | . . 2 . Electromagnetic 14 | . . . 14 Robot Hit Streak 7 | . 7 5 6 Robot Miss Streak 5 | . 5 3 4 Penetration Max . | . . . . Secondary Targets . | . . . . Shots Hit Robots 89 | . 34 12 43 Core Hits 66 | . 20 22 24 Critical Kills 1 | . 1 . . Critical Parts Destroyed . | . . . . Critical Strikes 2 | . 1 . 1 Burn 1 | . . . 1 Destroy 1 | . 1 . . Melee Attacks . | . . . . Impact . | . . . . Slashing . | . . . . Piercing . | . . . . Sneak Attacks . | . . . . Combat Hostiles . | . . . . Follow-up Attacks . | . . . . Damage Inflicted 1830 | . 453 515 862 Guns 1362 | . 403 147 812 Cannons . | . . . . Explosions 418 | . . 368 50 Melee . | . . . . Ramming 2 | . 2 . . Kinetic 699 | . 403 147 149 Thermal 584 | . 48 . 536 Explosive 368 | . . 368 . Electromagnetic 177 | . . . 177 Impact . | . . . . Slashing . | . . . . Piercing . | . . . . Highest Corruption 17 | . 1 17 . Average Corruption 3 | . 1 11 . Corruption Purged . | . . . . Corruption Blocked . | . . . . Effects 15 | . 4 11 . Message Errors 3 | . . 3 . Matter Fused 6 | . 2 4 . Heat Flow Errors 1 | . . 1 . Energy Discharges 2 | . 1 1 . Data Loss (minor) 2 | . 1 1 . Data Loss (major) 1 | . . 1 . Overload Shots . | . . . . Overflow Damage 16 | . . 16 . Projectiles . | . . . . Explosions 16 | . . 16 . Melee . | . . . . Knockbacks . | . . . . Impact . | . . . . Kinetic . | . . . . Secondary . | . . . . Self-Inflicted Damage 34 | . . 1 33 Shots 2 | . . 1 1 Rammed 2 | . 1 1 . Targets Rammed 2 | . 1 1 . Kicked . | . . . . Crushed . | . . . . Highest Temperature 194 | . 70 194 93 Average Temperature 29 | . 30 96 23 Received Heat Transfer 650 | . 177 20 453 Siege Activations . | . . . . Robots Corrupted . | . . . . Combat Hostiles . | . . . . Parts Fried . | . . . . Impact Corruptions . | . . . . Robots Melted . | . . . . Combat Hostiles . | . . . . Parts Melted 1 | . . . 1 Heat Transferred 1223 | . 100 . 1123 Parts Sabotaged . | . . . . Parts Stolen . | . . . . Parts Stripped . | . . . . Power Chain Reactions 1 | . . . 1 Alert | -11 -10 -10 -9 ------- Run | Yrd Mat Min Mat Peak Influence 250 | . 157 129 250 Initial 46 | . . 36 46 Average 94 | . 71 111 131 Maximum Alert Level 1 | . . . 1 Low Security (%) 96 | 100 100 100 87 Level 1 3 | . . . 12 Level 2 . | . . . . Level 3 . | . . . . Level 4 . | . . . . Level 5 . | . . . . High Security . | . . . . Max Security . | . . . . Squads Dispatched 5 | . 4 . 1 Investigation 1 | . 1 . . Extermination . | . . . . Reinforcement 4 | . 3 . 1 Assault . | . . . . Garrison . | . . . . Intercept . | . . . . Searches Triggered . | . . . . Construction Impeded . | . . . . Haulers Reinforced . | . . . . Active Scanning Responses . | . . . . Cargo Convoy Interrupts . | . . . . Stealth | -11 -10 -10 -9 --------- Run | Yrd Mat Min Mat Distress Signals 2 | . 1 . 1 Communications Jammed . | . . . . Distress Signals . | . . . . Times Spotted 67 | . 21 20 26 Peak Tracking Total 11 | . 4 11 9 Tactical Retreats 1 | . 1 . . Traps | -11 -10 -10 -9 ------- Run | Yrd Mat Min Mat Traps Triggered 3 | . 3 . . Indirectly . | . . . . Trap Hack Attempts . | . . . . Triggered . | . . . . Disarmed . | . . . . Reprogrammed 10 | . 6 . 4 Reused 1 | . 1 . . Traps Extracted . | . . . . Installed . | . . . . Triggered 1 | . 1 . . Machines | -11 -10 -10 -9 ---------- Run | Yrd Mat Min Mat Machines Disabled 2 | . . 1 1 Max in Single Turn 1 | . . 1 1 Machines Repaired . | . . . . Machines Dismantled . | . . . . Machines Sabotaged . | . . . . Overloaded Fab Kills . | . . . . Hacking | -11 -10 -10 -9 --------- Run | Yrd Mat Min Mat Machines Accessed 6 | . 3 . 3 Terminals 5 | . 3 . 2 Fabricators . | . . . . Repair Stations 1 | . . . 1 Recycling Units . | . . . . Scanalyzers . | . . . . Garrison Access . | . . . . Total Hacks 14 | . 7 . 7 Successful 9 | . 3 . 6 Failed 5 | . 4 . 1 Catastrophic 1 | . . . 1 Database Lockouts . | . . . . Manual 8 | . 5 . 3 Terminals 12 | . 7 . 5 Fabricators . | . . . . Repair Stations 2 | . . . 2 Recycling Units . | . . . . Scanalyzers . | . . . . Garrison Access . | . . . . Terminal Hacks 4 | . 1 . 3 Emergency Access Points 1 | . . . 1 Reprogram Traps 2 | . 1 . 1 Zone Layout 1 | . . . 1 Fabricator Hacks . | . . . . Repair Station Hacks 2 | . . . 2 Scan Component 1 | . . . 1 Repair 1 | . . . 1 Recycling Unit Hacks . | . . . . Scanalyzer . | . . . . Garrison Access Hacks . | . . . . Unauthorized Hacks 3 | . 2 . 1 Terminals 3 | . 2 . 1 Botnet 3 | . 2 . 1 Fabricators . | . . . . Repair Stations . | . . . . Recycling Units . | . . . . Scanalyzers . | . . . . Garrison Access . | . . . . Data Cores Recovered . | . . . . Used . | . . . . Hacking Detections 2 | . 1 . 1 Full Trace Events 1 | . . . 1 Feedback Events . | . . . . Feedback Blocked . | . . . . Robot Schematics Acquired . | . . . . Robots Built . | . . . . Authchips . | . . . . Time . | . . . . Total Robot Build Rating . | . . . . Part Schematics Acquired . | . . . . Parts Built . | . . . . Authchips . | . . . . Time . | . . . . Total Part Build Rating . | . . . . Parts Repaired 1 | . . . 1 Time 50 | . . . 50 Parts Recycled . | . . . . Recycled Matter . | . . . . Retrieved Matter . | . . . . Retrieved Components . | . . . . Parts Scanalyzed . | . . . . Part Schematics Acquired . | . . . . Parts Damaged . | . . . . Bothacking | -11 -10 -10 -9 ------------ Run | Yrd Mat Min Mat Used RIF Installer . | . . . . Robots Hacked . | . . . . Non-combat . | . . . . Combat . | . . . . Robot Hacks Applied . | . . . . Relay Couplers Released . | . . . . Fabnet Peak Effective % . | . . . . Robots Rewired . | . . . . Allies Hacked . | . . . . Hacks Repelled . | . . . . Allies | -11 -10 -10 -9 -------- Run | Yrd Mat Min Mat Total Allies . | . . . . Largest Group . | . . . . Highest-Rated Group . | . . . . Highest-Rated Ally . | . . . . Total Orders . | . . . . Ally Attacks . | . . . . Total Damage . | . . . . Kills . | . . . . Allies Corrupted . | . . . . Allies Melted . | . . . . Intel | -11 -10 -10 -9 ------- Run | Yrd Mat Min Mat Robot Analysis Total . | . . . . Derelict Logs Recovered 1 | . . 1 . Drone Launches . | . . . . Drone Recoveries . | . . . . Exploration | -11 -10 -10 -9 ------------- Run | Yrd Mat Min Mat Turns Passed 2038 | 53 1045 347 593 Spaces Moved 1368 | 56 571 292 449 Core 93 | 56 37 . . Treads 594 | . 534 60 . Legs . | . . . . Wheels 133 | . . 24 109 Hover 548 | . . 208 340 Flight . | . . . . Fastest Speed 50 | 50 100 80 80 Average Speed 116 | 84 156 97 81 Slowest Speed 160 | 100 160 160 86 Overloaded Moves . | . . . . Propulsion Burnouts . | . . . . Robots Hopped . | . . . . Cave-ins Triggered 1 | . . 1 . Exploration Rate (%) 32 | 3 54 40 33 Regions Visited 3 Branch Regions 1 Pre-discovered Areas 1 | . . 1 . Known Exits Taken . | . . . . Unknown Exits Taken 3 | 1 1 1 . Scrap Searched . | . . . . Spaces Dug 1 | . 1 . . Terrain Destroyed 26 | . 2 18 6 Melee . | . . . . Projectile 2 | . 2 . . AOE 24 | . . 18 6 Terrain Rammed . | . . . . Walls Destroyed . | . . . . Machines Disabled . | . . . . Actions | -11 -10 -10 -9 --------- Run | Yrd Mat Min Mat Total 1649 | 61 648 333 607 Wait 58 | . 6 . 52 Move 1364 | 55 570 290 449 Hop . | . . . . Pick Up 40 | 5 13 7 15 Fast Attach 5 | 1 . . 4 Attach 33 | . 13 6 14 Detach 3 | . . 1 2 Swap 8 | . 2 5 1 Drop 13 | . 2 4 7 Fire 122 | . 41 18 63 Melee . | . . . . Ram . | . . . . Kick . | . . . . Crush 2 | . 1 1 . Escape Stasis 1 | . . 1 . Rewire . | . . . . Trap . | . . . . Miscellaneous . | . . . . Route ------- -11/Scrapyard -10/Materials (discovered 3 exits: *Mat / [*Min x2]) -10/Mines -9/Materials (discovered 2 exits: [Mat] / [*Min]) History --------- Turn | Location | Event 5 | -11/Scrapyard | Discovered new exit (range 15) 54 | -11/Scrapyard | Entered Materials 280 | -10/Materials | Discovered new exit (range 9) 307 | -10/Materials | Build established: Mutant 411 | -10/Materials | Discovered new exit (range 16) 623 | -10/Materials | Discovered new exit (range 7) 1099 | -10/Materials | Entered Mines 1162 | -10/Mines | Assembled infested the area 1167 | -10/Mines | Assisted by a Guerilla fighting off Assembled 1212 | -10/Mines | Crushed by falling debris 1213 | -10/Mines | Core integrity fell below 50% 1213 | -10/Mines | System corruption reached 10% 1240 | -10/Mines | Discovered new exit (range 8) 1243 | -10/Mines | Lost 4 parts (1n1u2w) 1424 | -10/Mines | Learned location of Zion (-7) 1446 | -10/Mines | Entered Materials 1446 | -9/Materials | Evolved 2 slots: Propulsion x2 1472 | -9/Materials | Discovered new exit (range 14) 1680 | -9/Materials | Repaired Cmb. Airjet 1760 | -9/Materials | Core integrity fell below 50% 1878 | -9/Materials | Lost 3 parts (1p2w) 1946 | -9/Materials | Core integrity fell below 20% 2037 | -9/Materials | Discovered new exit (range 15) 2038 | -9/Materials | Lost 4 parts (1n1u2w) 2039 | -9/Materials | Destroyed by G-34 Mercenary with Small Laser Last Messages --------------- 01950_ K-01 Serf collects debris. 01984_ Acquired Arm. Wheel. 01986_ EM Shotgun destroyed. 01997_ Arm. Wheel destroyed. 02004_ C-30 ARC bursts open, deploying its payload. 02004_ L-31 Rogue unfolds itself. 02004_ G-34 Mercenary unfolds itself. 02004_ Com. Battery destroyed. 02007_ Welding Torch destroyed. 02025_ K-01 Serf collects debris. 02034_ T-07 Excavator is excavating. 02036_ O-16 Technician: "IFF HANDSHAKE FAILED. SECURING TERMINAL." 02037_ Connecting with Terminal... 02037_ EXIT=FOUND >>Layout(Zone) Retrieving Zone 6Q layout... Downloaded map data. >>Traps(Reprogram) Reprogrammed 4 Shock Traps. 02038_ T-07 Excavator is excavating. Map ----- +----------------------------------------------------+ | ??????????????????????????# # "" #??# #???? | | ??????????????????????????# # #??# ??? | | ??????????????????????????# # +?? ?? | | ??????????????????????????# # #?## ? | | ??????????????????????????# ###### ###??###+## | | ??????????????????????????# #????###??????????### | | ??????????????????????????# #???????????????????? | | ??????????????????????????# #???????????????????? | | ??????????????????????????# #???????????????????? | | ??????????????????????????# ######## ""?????????? | | ??????????????????????????# #??????# ""?????????? | | ???????????????????########/#??????# ""?????????? | | ???????????????????# #??????# ?????????? | | ???????????????????# """ #??????####?????????? | | ???????????????????# """ #???????????????????? | | ???????????????????# """ #???????????????????? | | ???????????????????# #???????????????????? | | ???????????????????#"" #???????????????????? | | ???????????????????#"T #???????????????????? | | ???????????????????#"" #???????????????????? | | ???????????????????# #???????????????????? | | ????????#######????####+#####???????????????????? | | ????????# ####### #?????????????????????? | | ????????# #?????????????????????? | | ????????# Y g T #?????????????????????? | | ????????# g a @ #?????????????????????? | | ????????# ###t### #?????????????????????? | | ????????## ### ???## ##?????????????????????? | | ?????????# #?#?????# #??????????????????????? | | ?????????# #???????# #??????????????????????? | | ?????????# #???????# #??????????????????????? | | ?????????# #???????# #??????????????????????? | | ?????????# < #???????# #??????????????????????? | | ?????????# #??????## ##?????????????????????? | | ?????????#####??????# #############?????????? | | ????????????????????# ^^ ?????????? | | ????????????????????# Y ^^ ?????????? | | ????????????????????# ?????????? | | ????????????????????# ##########+##?????????? | | ????????????????????# ##?????# ?????????? | | ?????????????????????? ???????????????????????? | | ????????????????????????????????????????????????? | | ????????????????????????????????????????????????? | | ????????????????????????????????????????????????? | | ????????????????????????????????????????????????? | | ????????????????????????????????????????????????? | | ????????????????????????????????????????????????? | | ????????????????????????????????????????????????? | | ????????????????????????????????????????????????? | | ????????????????????????????????????????????????? | +----------------------------------------------------+ Best States ------------- Heat Dissipation 50 Energy Generation 10 Energy Capacity 450 Matter Stores 300 Matter Capacity 300 Sight Range 16 Terrain Scan Range 14 Terrain Scan Density 10 Additional Mass Support 9 Armor Coverage 150 Evasion (%) 50 Recoil Reduction 2 Item Schematics ----------------- None Robot Schematics ------------------ None Fabricated ------------ Nothing Alien Tech Used ----------------- None Achievements -------------- None Challenges ------------ None Game ------ Seed ActuatorGodInverter Manual? 0 Play Time 00:24:26 Cumulative 85.2 hours Start 2024.08.01 @ 16:04:12 End 2024.08.01 @ 16:59:47 Sessions 1 Manual Loads 0 Difficulty Rogue Special Mode None Game No. 240 Rogue 240 Adventurer 0 Explorer 0 Win Type - Total 0 Types 0/0/0/0/0/0/0/0/0 Lore% 30 Gallery% 47 Achievement% 32 Wizard Run 0 Options --------- Layout 0 ASCII 0 Keyboard 0 Movement Arrows Keybinds 0 Fullscreen 1 Font 12/Smallcaps Map View 38x28 Zoom Use 100% Tactical HUD 1 Map Filters NONE Filters NONE Steam SD RUN: adf1deec-d8b1-4561-9544-c602d2744eef